bitfinex/quotes_BTCUSD_20251120
["timestamp","ask_amount","ask_price","bid_price","bid_amount"]
[1763649845495,0.02741949,91176.0,91175.0,0.01640232]
[1763649845706,0.02741949,91176.0,91165.0,0.01096912]
[1763649845707,0.02741949,91176.0,91158.0,0.01096996]
[1763649845920,0.01096791,91175.0,91167.0,0.01096888]
[1763649846121,0.21938243,91165.0,91153.0,0.01097056]
[1763649846323,0.78364305,91180.0,91164.0,0.01640232]
[1763649846530,0.25855139,91179.0,91164.0,0.01640232]
[1763649846742,0.02024106,91178.0,91171.0,0.0109684]
[1763649846947,0.21936122,91174.0,91168.0,0.21937463]
[1763649847166,0.21936625,91172.0,91169.0,0.01096864]
[1763649847367,0.00376,91172.0,91171.0,0.0109684]
[1763649847626,0.00136326,91170.0,91169.0,0.2303388]
[1763649847758,0.00136326,91170.0,91169.0,0.2836136]
[1763649848158,0.00136326,91170.0,91169.0,0.2583036]
[1763649848359,0.00136326,91170.0,91169.0,0.2303388]
[1763649848834,0.00136326,91170.0,91164.0,0.02737156]
[1763649848835,0.00136326,91170.0,91164.0,0.01640232]
[1763649849037,0.00476,91172.0,91167.0,0.01096888]
[1763649849188,0.00476,91172.0,91169.0,0.01096864]
[1763649849388,0.22412664,91172.0,91169.0,0.01096864]
[1763649849568,0.21936917,91171.0,91166.0,0.23034745]
[1763649849772,0.21936917,91171.0,91168.0,0.01096876]
[1763649849773,0.2193686,91171.0,91168.0,0.01096876]
[1763649849972,0.2193686,91171.0,91163.0,0.23035574]
[1763649849973,0.01096888,91167.0,91155.0,0.01097032]
[1763649850172,0.01096936,91163.0,91156.0,0.01640232]
[1763649850385,0.5642943,91180.0,91159.0,0.01096984]
[1763649850577,0.02027392,91171.0,91166.0,0.010969]
[1763649850939,0.5642943,91180.0,91150.0,0.01227]
[1763649850940,0.01096948,91162.0,91150.0,0.01227]
[1763649851125,0.02027392,91170.0,91116.0,1.16600689]
[1763649851126,0.01097068,91152.0,91134.0,0.01097285]
[1763649851344,0.01097068,91152.0,91120.0,0.5642943]
[1763649851345,0.01097357,91128.0,91111.0,0.02324562]
[1763649851470,0.01097417,91123.0,91119.0,0.01640232]
[1763649851680,0.00376,91122.0,91116.0,0.01097502]
[1763649851878,0.00376,91122.0,91115.0,0.01097514]
[1763649852106,0.00376,91122.0,91116.0,0.23047543]
[1763649852329,0.0109755,91112.0,91105.0,0.01640232]
[1763649852550,0.00376,91122.0,91105.0,0.01640232]
[1763649852551,0.01097514,91115.0,91105.0,0.01640232]
[1763649852753,0.21949088,91120.0,91116.0,0.01097502]
[1763649852969,0.00376,91122.0,91120.0,0.21948944]
[1763649853159,0.00376,91122.0,91119.0,0.23046609]
[1763649853355,0.01097225,91139.0,91134.0,0.01097285]
[1763649853559,0.01097225,91139.0,91127.0,0.01097369]
[1763649853560,0.21940891,91154.0,91144.0,0.01097164]
[1763649853788,0.21940891,91154.0,91136.0,0.01097261]
[1763649853789,0.22039206,91162.0,91152.0,0.01097068]
[1763649853916,0.5642943,91170.0,91149.0,0.02737336]
[1763649853917,0.00376,91153.0,91151.0,0.01227]
[1763649854125,0.01096623,91189.0,91176.0,0.21935589]
[1763649854336,0.0202322,91188.0,91185.0,0.01096671]
[1763649854545,0.01096455,91203.0,91196.0,0.21930576]
[1763649854772,0.01096455,91203.0,91192.0,0.01096587]
[1763649854773,0.0110287,91229.0,91211.0,0.01096358]
[1763649854774,0.01096719,91229.0,91211.0,0.01096358]
[1763649854974,0.01096274,91218.0,91204.0,0.01096443]
[1763649855176,0.05140902,91228.0,91210.0,0.21927244]
[1763649855177,0.00259548,91212.0,91210.0,0.21927244]
[1763649855379,0.02024516,91217.0,91216.0,0.21925977]
[1763649855757,0.02024516,91217.0,91206.0,0.01096419]
[1763649855758,0.00376,91228.0,91226.0,0.21923361]
[1763649856200,0.02739876,91245.0,91237.0,0.01096046]
[1763649856404,0.0004,91250.0,91248.0,0.21918236]
[1763649856639,0.0004,91250.0,91247.0,0.23014383]
[1763649857088,0.0004,91250.0,91247.0,0.01095926]
[1763649857301,0.0004,91250.0,91249.0,0.01640232]
[1763649857723,0.0004,91250.0,91249.0,0.04171232]
[1763649857899,0.0004,91250.0,91249.0,0.36471232]
[1763649858095,0.0004,91250.0,91249.0,0.33940232]
[1763649858343,0.0004,91250.0,91249.0,0.28771232]
[1763649858548,0.0004,91250.0,91249.0,0.10786494]
[1763649858922,0.0004,91250.0,91249.0,0.01640232]
[1763649859151,0.0004,91250.0,91249.0,0.2355828]
[1763649859359,0.0004,91250.0,91249.0,0.2708928]
[1763649859749,0.0004,91270.0,91269.0,0.21913245]
[1763649859969,0.0004,91270.0,91269.0,0.23140245]
[1763649860119,0.0004,91270.0,91269.0,0.32624762]
[1763649860328,0.0004,91270.0,91269.0,0.64924762]
[1763649860549,0.0004,91270.0,91269.0,0.25671245]
[1763649860754,0.0004,91270.0,91268.0,0.01640232]
[1763649861006,0.00469524,91270.0,91268.0,0.01640232]
[1763649861134,0.00469524,91270.0,91263.0,0.01640232]
[1763649861135,0.0004,91270.0,91263.0,0.01640232]
[1763649861506,0.0004,91270.0,91268.0,0.21913433]
[1763649861930,0.0004,91270.0,91268.0,0.21913485]
[1763649862313,0.0004,91270.0,91263.0,0.01640232]
[1763649862548,0.0004,91270.0,91243.0,0.01095974]
[1763649862549,0.01095686,91267.0,91243.0,0.01095974]
[1763649862696,0.2191573,91259.0,91252.0,0.01095866]
[1763649862907,0.00376,91269.0,91261.0,0.01095758]
[1763649863108,0.00376,91269.0,91263.0,0.01640232]
[1763649863273,0.00376,91269.0,91263.0,0.02735966]
[1763649863499,0.21914286,91265.0,91263.0,0.01640232]
[1763649863695,0.02739305,91264.0,91249.0,0.01640232]
[1763649863945,0.02739185,91268.0,91263.0,0.01640232]
[1763649864463,0.00376,91269.0,91267.0,0.21913725]
[1763649864735,0.00376,91269.0,91235.0,0.02531]
[1763649864736,0.001,91265.0,91235.0,0.02531]
[1763649864918,0.001,91265.0,91264.0,0.01640232]
[1763649864919,0.002,91265.0,91264.0,0.01640232]
[1763649865249,0.21913766,91267.0,91264.0,0.01640232]
[1763649865450,0.00376,91269.0,91266.0,0.01095698]
[1763649865657,0.001,91268.0,91266.0,0.01095698]
[1763649865859,0.001,91268.0,91264.0,0.00340232]
[1763649865860,0.001,91268.0,91265.0,0.0109571]
[1763649866092,0.001,91268.0,91266.0,0.21913965]
[1763649866496,0.001,91268.0,91264.0,0.22254468]
[1763649866697,0.001,91268.0,91243.0,0.01095974]
[1763649866698,0.01095782,91259.0,91243.0,0.01095974]
[1763649866860,0.05125578,91268.0,91241.0,0.01640232]
[1763649866861,0.0109583,91255.0,91241.0,0.01640232]
[1763649867062,0.00376,91255.0,91244.0,0.01095962]
[1763649867271,0.21917584,91251.0,91244.0,0.01095962]
[1763649867489,0.21916847,91254.0,91244.0,0.01095962]
[1763649867694,0.00376,91255.0,91244.0,0.01095962]
[1763649867695,0.00376,91255.0,91250.0,0.0109589]
[1763649868079,0.01095962,91244.0,91235.0,0.0109607]
[1763649868290,0.00376,91255.0,91213.0,0.01227]
[1763649868291,0.21922366,91232.0,91213.0,0.01227]
[1763649868513,0.21922366,91232.0,91190.0,0.58815567]
[1763649868514,0.01096431,91205.0,91185.0,0.01096671]
[1763649868710,0.01096358,91211.0,91179.0,0.02531]
[1763649868711,0.00376,91204.0,91203.0,0.01640232]
[1763649868832,0.00376,91204.0,91203.0,0.23569335]
[1763649869042,0.01096022,91239.0,91225.0,0.21923743]
[1763649869249,0.21922076,91233.0,91219.0,0.01096262]
[1763649869438,0.01472034,91238.0,91213.0,0.01096334]
[1763649869439,0.01096106,91232.0,91213.0,0.01096334]
[1763649869678,0.01096142,91229.0,91219.0,0.01096262]
[1763649869892,0.21924671,91222.0,91218.0,0.01096274]
[1763649870112,0.21924671,91222.0,91184.0,0.43866962]
[1763649870113,0.22300971,91221.0,91217.0,0.01096286]
[1763649870273,0.00376,91221.0,91218.0,0.02736506]
[1763649870475,0.00376,91221.0,91210.0,0.01096371]
[1763649870675,0.00376,91221.0,91218.0,0.01096274]
[1763649870897,0.00376,91221.0,91213.0,0.01096334]
[1763649870898,0.01096274,91218.0,91212.0,0.01096346]
[1763649871074,0.01096286,91217.0,91189.0,0.02419]
[1763649871279,0.57815568,91220.0,91180.0,0.01096731]
[1763649871540,0.01096455,91203.0,91194.0,0.01096563]
[1763649871762,0.21930449,91198.0,91194.0,0.01096563]
[1763649871938,0.01096587,91192.0,91155.0,0.44257262]
[1763649872136,0.01096587,91192.0,91183.0,0.01096695]
[1763649872348,0.00376,91202.0,91191.0,0.01096599]
[1763649872548,0.00376,91201.0,91199.0,0.2152988]
[1763649872920,0.00376,91201.0,91193.0,0.21931363]
[1763649872921,0.05210249,91220.0,91209.0,0.01096383]
[1763649873123,0.21926653,91214.0,91209.0,0.01096383]
[1763649873324,0.23022939,91214.0,91160.0,1.10696995]
[1763649873581,0.21928862,91204.0,91202.0,0.01640232]
[1763649873786,0.01093776,91214.0,91202.0,0.01640232]
[1763649873787,0.23023569,91211.0,91203.0,0.01096455]
[1763649873994,0.00376,91203.0,91202.0,0.23569575]
[1763649874363,0.21924454,91223.0,91217.0,0.01096286]
[1763649874673,0.00376,91222.0,91219.0,0.23021413]
[1763649874967,0.2192369,91226.0,91219.0,0.23021413]
[1763649874968,0.00376,91221.0,91219.0,0.01096262]
[1763649875128,0.01096298,91216.0,91186.0,0.02267]
[1763649875471,0.21928992,91204.0,91189.0,0.01164]
[1763649875672,0.00376,91203.0,91198.0,0.01096515]
[1763649875814,0.00376,91203.0,91202.0,0.01640232]
[1763649876246,0.00376,91203.0,91198.0,0.23026793]
[1763649876247,0.00376,91203.0,91198.0,0.01096515]
[1763649876466,0.01096479,91201.0,91185.0,0.21933377]
[1763649876668,0.00376,91203.0,91189.0,0.01640232]
[1763649876867,0.01096467,91202.0,91189.0,0.01640232]
[1763649877146,0.00376,91203.0,91197.0,0.21930465]
[1763649877376,0.001,91223.0,91199.0,0.01096503]
[1763649877377,0.00376,91202.0,91199.0,0.01096503]
[1763649877586,0.00376,91202.0,91201.0,0.21929441]
[1763649877783,0.21927397,91211.0,91201.0,0.21929441]
[1763649877784,0.001,91216.0,91210.0,0.01096371]
[1763649877992,0.21927325,91211.0,91204.0,0.01096443]
[1763649878188,0.21927325,91211.0,91191.0,0.02267]
[1763649878189,0.00376,91215.0,91205.0,0.01640232]
[1763649878386,0.21928267,91207.0,91206.0,0.01640232]
[1763649878813,0.21927179,91211.0,91206.0,0.02736651]
[1763649879027,0.21927357,91211.0,91208.0,0.01096395]
[1763649879221,0.22027357,91211.0,91208.0,0.01096395]
[1763649879420,0.21927551,91210.0,91207.0,0.01096407]
[1763649879651,0.001,91216.0,91205.0,0.01096431]
[1763649879903,0.001,91216.0,91203.0,0.01640232]
[1763649879904,0.001,91216.0,91215.0,0.21926218]
[1763649880065,0.00376,91215.0,91213.0,0.23022847]
[1763649880268,0.21926629,91214.0,91211.0,0.01096358]
[1763649880473,0.21926629,91214.0,91190.0,1.00226863]
[1763649880474,0.01096419,91206.0,91188.0,0.01164]
[1763649880677,0.01096419,91206.0,91156.0,1.09701805]
[1763649880678,0.01096635,91188.0,91169.0,0.01096864]
[1763649880877,0.21934221,91182.0,91178.0,0.01096755]
[1763649881101,0.21935761,91176.0,91150.0,0.56362788]
[1763649881305,0.01096852,91170.0,91153.0,0.01097056]
[1763649881589,0.01096984,91159.0,91147.0,0.01097128]
[1763649881823,0.01096984,91159.0,91140.0,0.01227]
[1763649881824,0.2193933,91161.0,91146.0,0.0109714]
[1763649882039,0.00376,91169.0,91140.0,0.01227]
[1763649882040,0.2193997,91158.0,91154.0,0.01097044]
[1763649882252,0.21940262,91157.0,91151.0,0.23038562]
[1763649882475,0.00376,91169.0,91140.0,0.01227]
[1763649882476,0.37510249,91179.0,91161.0,0.0109696]
[1763649882678,0.21938092,91166.0,91162.0,0.01096948]
[1763649882884,0.00376,91165.0,91162.0,0.01096948]
[1763649883089,0.00376,91165.0,91158.0,0.21939846]
[1763649883090,0.01096707,91182.0,91172.0,0.01096827]
[1763649883292,0.00376,91181.0,91171.0,0.0109684]
[1763649883495,0.00376,91180.0,91172.0,0.01096827]
[1763649883643,0.21935115,91178.0,91174.0,0.01096803]
[1763649883846,0.00376,91180.0,91175.0,0.01096791]
[1763649884052,0.00376,91180.0,91135.0,0.02737505]
[1763649884053,0.2194178,91151.0,91135.0,0.02737505]
[1763649884256,0.21943619,91143.0,91136.0,0.01097261]
[1763649884456,0.00376,91150.0,91147.0,0.01097128]
[1763649884634,0.00376,91150.0,91135.0,0.01640232]
[1763649884635,0.00376,91150.0,91138.0,0.01097237]
[1763649884821,0.219432,91145.0,91140.0,0.21944146]
[1763649885021,0.00376,91150.0,91142.0,0.01097189]
[1763649885226,0.0109714,91146.0,91135.0,0.01640232]
[1763649885427,0.21943438,91144.0,91135.0,0.01640232]
[1763649885631,0.01097237,91138.0,91104.0,0.03431]
[1763649885830,0.01097237,91138.0,91126.0,0.01097381]
[1763649885831,0.21946878,91130.0,91126.0,0.01097381]
[1763649886143,0.01473249,91137.0,91123.0,0.23045699]
[1763649886347,0.01473249,91137.0,91128.0,0.21947009]
[1763649886348,0.21945856,91134.0,91128.0,0.21947009]
[1763649886558,0.01097273,91135.0,91124.0,0.02737637]
[1763649886774,0.00376,91137.0,91117.0,0.0109749]
[1763649886921,0.21947121,91129.0,91123.0,0.21948263]
[1763649887099,0.01097321,91131.0,91123.0,0.01097417]
[1763649887313,0.01097297,91133.0,91125.0,0.01097393]
[1763649887524,0.01097345,91129.0,91119.0,0.01097465]
[1763649887717,0.38137978,91137.0,91121.0,0.01097441]
[1763649887944,0.21945706,91134.0,91130.0,0.21946588]
[1763649888182,0.01097201,91141.0,91128.0,0.01097357]
[1763649888183,0.00376,91133.0,91131.0,0.02737553]
[1763649888355,0.22322187,91133.0,91122.0,0.01097429]
[1763649888527,0.22322187,91133.0,91124.0,0.01097405]
[1763649888528,0.21947069,91129.0,91124.0,0.01097405]
[1763649888901,0.00376,91133.0,91117.0,0.01640232]
[1763649889035,0.2194691,91130.0,91120.0,0.01097453]
[1763649889232,0.21947028,91129.0,91124.0,0.2194805]
[1763649889436,0.01473297,91133.0,91118.0,0.01097477]
[1763649889437,0.21948452,91123.0,91119.0,0.23046783]
[1763649889639,0.21948452,91123.0,91116.0,0.01097502]
[1763649889640,0.21949178,91120.0,91116.0,0.01097502]
[1763649889882,0.21949178,91120.0,91106.0,0.21952399]
[1763649889883,0.01097502,91116.0,91087.0,0.02267]
[1763649890079,0.00376,91119.0,91107.0,0.0109761]
[1763649890284,0.00376,91119.0,91105.0,0.01097634]
[1763649890285,0.01097526,91114.0,91105.0,0.01097634]
[1763649890504,0.01473465,91119.0,91105.0,0.01097634]
[1763649890505,0.21949559,91118.0,91108.0,0.01097598]
[1763649890714,0.001,91133.0,91119.0,0.01097465]
[1763649890715,0.324,91133.0,91119.0,0.01097465]
[1763649890928,0.324,91133.0,91116.0,0.01097502]
[1763649890929,0.001,91133.0,91125.0,0.21947803]
[1763649891138,0.00376,91132.0,91114.0,0.01097526]
[1763649891345,0.01097357,91128.0,91114.0,0.01097526]
[1763649891550,0.21947767,91126.0,91118.0,0.01640232]
[1763649891769,0.0109714,91146.0,91134.0,0.01097285]
[1763649891968,0.323,91156.0,91137.0,0.01097249]
[1763649892175,0.323,91149.0,91147.0,0.01097128]
[1763649892409,0.53741393,91152.0,91146.0,0.0109714]
[1763649892616,0.21940891,91154.0,91149.0,0.21941978]
[1763649892832,0.219422,91149.0,91145.0,0.01097152]
[1763649893049,0.00376,91155.0,91147.0,0.01097128]
[1763649893255,0.21941346,91153.0,91149.0,0.01097104]
[1763649893455,0.00376,91155.0,91137.0,0.21944786]
[1763649893456,0.00376,91155.0,91141.0,0.01097201]
[1763649893682,0.2194339,91144.0,91140.0,0.01097213]
[1763649893826,0.22319543,91143.0,91139.0,0.01097225]
[1763649894034,0.22319543,91143.0,91137.0,0.01097249]
[1763649894035,0.00376,91143.0,91141.0,0.2194402]
[1763649894259,0.00376,91143.0,91140.0,0.01097213]
[1763649894957,0.00376,91143.0,91141.0,0.21943798]
[1763649895167,0.02742521,91157.0,91141.0,0.21943798]
[1763649895371,0.21945835,91134.0,91114.0,0.01097526]
[1763649895585,0.21946187,91132.0,91128.0,0.01097357]
[1763649895797,0.00376,91131.0,91128.0,0.23044405]
[1763649895998,0.00376,91131.0,91129.0,0.21946719]
[1763649896202,0.00376,91131.0,91123.0,0.01097417]
[1763649896203,0.00376,91131.0,91126.0,0.2304495]
[1763649896445,0.00376,91131.0,91129.0,0.21946813]
[1763649896686,0.00376,91131.0,91129.0,0.21946696]
[1763649897308,0.00376,91131.0,91128.0,0.01097357]
[1763649897530,0.00376,91131.0,91119.0,0.01640232]
[1763649897755,0.21948762,91122.0,91119.0,0.01640232]
[1763649897973,0.00376,91131.0,91122.0,0.01097429]
[1763649898171,0.21948847,91121.0,91119.0,0.01640232]
[1763649898384,0.01097357,91128.0,91116.0,0.21949962]
[1763649898589,0.01097345,91129.0,91120.0,0.02737685]
[1763649898841,0.01097345,91129.0,91120.0,0.01640232]
[1763649899051,0.01097345,91129.0,91117.0,0.21949602]
[1763649899268,0.21948596,91122.0,91121.0,0.01640232]
[1763649899529,0.01097441,91121.0,91109.0,0.21951649]
[1763649899712,0.21951487,91110.0,91105.0,0.01640232]
[1763649899905,0.00376,91109.0,91108.0,0.23049554]
[1763649900106,0.00376,91109.0,91088.0,0.01097839]
[1763649900304,0.00376,91109.0,91104.0,0.01097646]
[1763649900512,0.323,91131.0,91068.0,0.00376]
[1763649900513,0.323,91131.0,91112.0,0.0109755]
[1763649900514,0.01097405,91124.0,91112.0,0.0109755]
[1763649900841,0.00999999,91150.0,91091.0,0.02267]
[1763649900842,0.21953191,91103.0,91098.0,0.21954256]
[1763649901142,0.32918247,91135.0,91091.0,0.02267]
[1763649901143,0.01122052,91132.0,91116.0,0.01097502]
[1763649901370,0.00024743,91132.0,91131.0,0.21946428]
[1763649901601,0.00024743,91132.0,91131.0,0.01164]
[1763649901770,0.00024743,91132.0,91129.0,0.23044108]
[1763649901771,0.00400743,91132.0,91130.0,0.23110669]
[1763649902004,0.00400743,91132.0,91130.0,0.01164]
[1763649902203,0.00400743,91132.0,91119.0,0.01097465]
[1763649902335,0.00400743,91132.0,91105.0,0.34567]
[1763649902336,0.00024743,91132.0,91131.0,0.01146]
[1763649902541,0.00024743,91132.0,91131.0,0.07505387]
[1763649902743,0.00024743,91132.0,91127.0,0.01097369]
[1763649902744,0.00124743,91132.0,91105.0,0.00376]
[1763649902927,0.00124743,91132.0,91123.0,0.01640232]
[1763649903128,0.00124743,91132.0,91131.0,0.01146]
[1763649903336,0.2194689,91130.0,91123.0,0.01640232]
[1763649903535,0.00124743,91132.0,91123.0,0.01640232]
[1763649903536,0.21947925,91125.0,91123.0,0.01640232]
[1763649903761,0.21953173,91103.0,91090.0,0.0002]
[1763649903962,0.21953173,91103.0,91090.0,0.01117815]
[1763649903963,0.00376,91103.0,91090.0,0.01117815]
[1763649904163,0.00376,91103.0,91097.0,0.01640232]
[1763649904646,0.00024743,91132.0,91126.0,0.01097381]
[1763649904824,0.00024743,91132.0,91097.0,0.03915232]
[1763649904825,0.00024743,91132.0,91118.0,0.02275]
[1763649905038,0.00024743,91132.0,91112.0,0.01640232]
[1763649905039,0.00376,91131.0,91125.0,0.01097393]
[1763649905250,0.22322546,91131.0,91127.0,0.01097369]
[1763649905459,0.22322546,91131.0,91090.0,0.0002]
[1763649905460,0.00376,91131.0,91090.0,0.0002]
[1763649905650,0.21956065,91091.0,91090.0,0.0002]
[1763649905805,0.00376,91091.0,91090.0,0.0002]
[1763649906457,0.00376,91091.0,91051.0,0.01640232]
[1763649906458,0.01098225,91056.0,91051.0,0.01640232]
[1763649906653,0.00376,91091.0,91051.0,0.01640232]
[1763649906654,0.00376,91055.0,91054.0,0.01098249]
[1763649906855,0.53130161,91100.0,91054.0,0.01098249]
[1763649906856,0.01097851,91087.0,91067.0,0.01098092]
[1763649907072,0.01097851,91087.0,91054.0,0.09358301]
[1763649907073,0.01097887,91084.0,91073.0,0.0109802]
[1763649907293,0.21958932,91080.0,91074.0,0.21960037]
[1763649907511,0.00376,91086.0,91076.0,0.01097984]
[1763649907763,0.21961369,91069.0,91068.0,0.01640232]
[1763649907979,0.21961369,91069.0,91060.0,0.01098177]
[1763649907981,0.00376,91069.0,91060.0,0.01098177]
[1763649908179,0.01098177,91060.0,91053.0,0.01146]
[1763649908382,0.01098177,91060.0,91052.0,0.01640232]
[1763649908383,0.21964808,91055.0,91052.0,0.01640232]
[1763649908702,0.01098177,91060.0,91047.0,0.01098333]
[1763649908703,0.2196354,91060.0,91047.0,0.01098333]
[1763649908912,1.04120982,91080.0,91043.0,0.01640232]
[1763649908913,0.21967256,91045.0,91043.0,0.01640232]
[1763649909123,0.00376,91054.0,91044.0,0.01640232]
[1763649909124,0.21965703,91052.0,91044.0,0.01640232]
[1763649909287,0.21965818,91051.0,91048.0,0.01098321]
[1763649909538,0.00376,91054.0,91049.0,0.01098309]
[1763649909777,0.00376,91054.0,91031.0,0.01146]
[1763649909778,0.21968124,91041.0,91031.0,0.01146]
[1763649910003,0.00376,91041.0,91038.0,0.01098442]
[1763649910206,0.00376,91041.0,91040.0,0.21971287]
[1763649910408,0.00376,91041.0,91040.0,2.922e-05]
[1763649911259,0.00999999,91080.0,91040.0,2.922e-05]
[1763649911260,0.323,91053.0,91041.0,0.01098406]
[1763649911468,0.01098152,91062.0,91041.0,0.01098406]
[1763649911469,0.01098032,91072.0,91050.0,0.01098297]
[1763649911662,0.7108284,91090.0,91065.0,0.01098116]
[1763649911943,0.00376,91089.0,91076.0,0.23057602]
[1763649912184,0.01097947,91079.0,91056.0,0.01146]
[1763649912517,0.01097899,91083.0,91073.0,0.0109802]
[1763649912720,0.32676,91089.0,91069.0,0.01640232]
[1763649912721,0.05210249,91088.0,91069.0,0.01640232]
[1763649912929,0.323,91082.0,91040.0,2.922e-05]
[1763649913085,0.01098104,91066.0,91058.0,0.01640232]
[1763649913291,0.21964412,91057.0,91050.0,0.01098297]
[1763649913490,0.21965008,91054.0,91047.0,0.21966552]
[1763649913662,0.00376,91053.0,91051.0,0.21965706]
[1763649913874,0.0109837,91044.0,91030.0,0.0002]
[1763649914075,0.01098297,91050.0,91030.0,0.0002]
[1763649914076,0.21970537,91031.0,91030.0,0.0002]
[1763649914306,0.54646537,91031.0,91030.0,0.0002]
[1763649914507,0.64724837,91031.0,91030.0,0.0002]
[1763649914723,0.01098225,91056.0,91030.0,0.0002]
[1763649914942,0.21970537,91031.0,91030.0,0.0002]
[1763649915176,0.00376,91031.0,91030.0,0.0002]
[1763649915377,0.21970461,91032.0,91030.0,0.0002]
[1763649915378,0.05210249,91054.0,91036.0,0.01098466]
[1763649915606,0.01098008,91074.0,91037.0,0.01140232]
[1763649915806,0.01098177,91060.0,91037.0,0.01140232]
[1763649916081,0.21966611,91048.0,91038.0,0.21968848]
[1763649916305,0.01098237,91055.0,91037.0,0.01140232]
[1763649916470,0.21968848,91038.0,91037.0,0.01140232]
[1763649916703,0.21968848,91038.0,91030.0,0.0002]
[1763649916704,0.21970486,91032.0,91030.0,0.0002]
[1763649917096,0.01098394,91042.0,91030.0,0.0002]
[1763649917097,0.53240983,91090.0,91053.0,0.21965131]
[1763649917267,0.53240983,91090.0,91047.0,0.01098333]
[1763649917268,0.23060185,91067.0,91047.0,0.01098333]
[1763649917467,0.01098092,91067.0,91051.0,0.01098285]
[1763649917699,0.2196163,91068.0,91052.0,0.01098273]
[1763649917877,0.01098128,91064.0,91048.0,0.01640232]
[1763649918074,0.21965491,91052.0,91048.0,0.01640232]
[1763649918361,0.21965491,91052.0,91040.0,0.21968126]
[1763649918362,0.00376,91051.0,91027.0,0.01640232]
[1763649918576,0.21970327,91032.0,91012.0,0.01098756]
[1763649918795,0.00376,91031.0,91012.0,0.01098756]
[1763649919006,0.01098068,91069.0,91049.0,0.01098309]
[1763649919212,0.323,91080.0,91053.0,0.01098261]
[1763649919213,0.01098092,91067.0,91053.0,0.01098261]
[1763649919425,0.2196354,91060.0,91037.0,0.01098454]
[1763649919642,0.01098213,91057.0,91030.0,0.0002]
[1763649919853,0.21969891,91034.0,91030.0,0.0002]
[1763649920059,0.21970473,91032.0,91030.0,0.0002]
[1763649920446,0.21970373,91032.0,91030.0,0.0002]
[1763649920926,0.323,91031.0,91030.0,0.0002]
[1763649921128,0.23444815,91033.0,91030.0,0.0002]
[1763649921129,0.21970313,91033.0,91030.0,0.0002]
[1763649921340,0.01098418,91040.0,91030.0,0.0002]
[1763649921558,0.01098382,91043.0,91030.0,0.0002]
[1763649921559,0.22346362,91032.0,91030.0,0.0002]
[1763649922644,0.37510249,91031.0,91030.0,0.0002]
[1763649922847,0.01098719,91015.0,90998.0,0.0015458]
[1763649923055,0.01098816,91007.0,90998.0,0.0015458]
[1763649923268,0.21978263,90999.0,90998.0,0.0015458]
[1763649923469,0.27564512,90999.0,90998.0,0.0015458]
[1763649923677,0.34487506,90999.0,90998.0,0.0015458]
[1763649923882,0.323,91007.0,90998.0,0.0015458]
[1763649924119,0.00376,90999.0,90998.0,0.0015458]
[1763649924332,0.00376,90999.0,90987.0,0.01640232]
[1763649924566,0.01098985,90993.0,90982.0,0.01640232]
[1763649924768,0.01098997,90992.0,90978.0,0.01640232]
[1763649924972,0.21982183,90983.0,90975.0,0.01099203]
[1763649925200,0.00376,90982.0,90968.0,0.01099287]
[1763649925416,0.00376,90982.0,90978.0,0.01099166]
[1763649925630,0.00376,90981.0,90955.0,0.323]
[1763649925844,0.00773,90962.0,90959.0,0.01099396]
[1763649926058,0.01546,90992.0,90973.0,0.01099227]
[1763649926283,0.01546,90992.0,90956.0,0.01640232]
[1763649926284,0.01546,91003.0,90976.0,0.01640232]
[1763649926484,0.05210249,91005.0,90976.0,0.01640232]
[1763649926485,0.00376,90991.0,90988.0,0.01099046]
[1763649926878,0.00376,90991.0,90982.0,0.01099118]
[1763649926879,0.21981616,90986.0,90977.0,0.01099178]
[1763649927080,0.00376,90991.0,90980.0,0.23081884]
[1763649927289,0.01546,91001.0,90990.0,0.01640232]
[1763649927428,0.323,91004.0,90950.0,0.00999999]
[1763649927429,0.00376,90998.0,90981.0,0.23081686]
[1763649927632,0.00376,90998.0,90991.0,0.01099009]
[1763649927872,0.323,91009.0,90996.0,0.01098949]
[1763649928084,0.21978242,91000.0,90994.0,0.01098973]
[1763649928304,0.00773,91012.0,91005.0,0.0109884]
[1763649928520,0.01723388,91031.0,91009.0,0.01640232]
[1763649928521,0.01098526,91031.0,91009.0,0.01640232]
[1763649928723,0.00773,91098.0,91009.0,0.01640232]
[1763649928724,0.00376,91030.0,91009.0,0.02739024]
[1763649928924,0.00376,91029.0,91012.0,0.01098756]
[1763649929131,0.01740342,91028.0,91009.0,0.01640232]
[1763649929351,0.01098671,91019.0,90993.0,0.02275]
[1763649929567,0.01098635,91022.0,91006.0,0.01640232]
[1763649929568,0.00773,91010.0,91006.0,0.01640232]
[1763649929776,0.00376,91029.0,91006.0,0.01640232]
[1763649929777,0.00376,91014.0,91007.0,0.02262]
[1763649929971,0.002,91031.0,91028.0,0.01098563]
[1763649930307,0.002,91031.0,91013.0,0.01098744]
[1763649930308,0.2197102,91029.0,91013.0,0.01098744]
[1763649930526,0.00376,91030.0,91008.0,0.01177]
[1763649930527,0.21972951,91021.0,91020.0,0.01640232]
[1763649930697,0.01474538,91030.0,91003.0,0.01098864]
[1763649930698,0.21974845,91014.0,91003.0,0.01098864]
[1763649931053,0.00376,91013.0,91008.0,0.01098804]
[1763649931225,0.00376,91013.0,90991.0,0.03408]
[1763649931375,0.00376,91013.0,90995.0,0.01098961]
[1763649931604,0.01474744,91013.0,91001.0,0.01098889]
[1763649931821,0.01098792,91009.0,90995.0,0.01098961]
[1763649932187,0.01474744,91013.0,91000.0,0.23076737]
[1763649932188,0.21976348,91007.0,91000.0,0.23076737]
[1763649932389,0.00376,91013.0,90997.0,0.21978746]
[1763649932591,0.00376,91013.0,90992.0,0.01640232]
[1763649932592,0.00376,91013.0,91000.0,0.01098901]
[1763649932798,0.00376,91013.0,91008.0,0.2197609]
[1763649932957,0.00376,91013.0,91007.0,0.01098816]
[1763649933315,0.01098418,91040.0,91027.0,0.01098575]
[1763649933448,0.21972849,91022.0,91021.0,0.01640232]
[1763649933647,0.21972849,91022.0,91006.0,0.01640232]
[1763649933648,0.00376,91022.0,91016.0,0.01098707]
[1763649933870,0.00376,91022.0,91021.0,0.21972951]
[1763649934282,0.00376,91029.0,91026.0,0.01098587]
[1763649934446,0.00376,91028.0,91025.0,0.01098599]
[1763649934644,0.00376,91028.0,91026.0,0.2197164]
[1763649935073,0.00376,91028.0,91027.0,0.21971502]
[1763649935691,0.01474563,91028.0,91020.0,0.01640232]
[1763649935888,0.00376,91028.0,91020.0,0.01640232]
[1763649936089,0.00376,91028.0,91022.0,0.01098635]
[1763649936291,0.01098309,91049.0,91039.0,0.0109843]
[1763649936630,0.01098309,91049.0,91041.0,0.01098406]
[1763649936631,0.03121804,91048.0,91041.0,0.01098406]